[Event "*** Titled Tuesday Blitz"]
[Site "Chess.com"]
[Date "2021.02.09"]
[Round "3"]
[White "ckgchess"]
[Black "SanQui14"]
[Result "1-0"]
[WhiteElo "2727"]
[BlackElo "2440"]
[TimeControl "180+1"]
[EndTime "10:30:11 PST"]
[Termination "ckgchess won by resignation"]

1. e4 {[%clk 0:03:00.9]} 1... e6 {[%clk 0:02:59.6]} 2. d3 {[%clk 0:03:00.3]}
2... d5 {[%clk 0:03:00.3]} 3. Nd2 {[%clk 0:03:01.2]} 3... e5 {[%clk 0:02:59.4]}
4. Ngf3 {[%clk 0:03:00.9]} 4... Nc6 {[%clk 0:02:59.3]} 5. exd5 {[%clk
0:03:00.1]} 5... Qxd5 {[%clk 0:02:58.7]} 6. g3 {[%clk 0:03:00.7]} 6... Nf6
{[%clk 0:02:58.8]} 7. Bg2 {[%clk 0:03:01.2]} 7... Bc5 {[%clk 0:02:58.2]} 8. O-O
{[%clk 0:03:01.3]} 8... O-O {[%clk 0:02:53.9]} 9. Re1 {[%clk 0:02:59.3]} 9...
Qd8 {[%clk 0:02:06.7]} 10. Nc4 {[%clk 0:02:31.5]} 10... Ng4 {[%clk 0:01:55.3]}
11. Ne3 {[%clk 0:02:24.4]} 11... Re8 {[%clk 0:01:49.8]} 12. Nxg4 {[%clk
0:02:10.6]} 12... Bxg4 {[%clk 0:01:50.7]} 13. h3 {[%clk 0:02:11.2]} 13... Bh5
{[%clk 0:01:48.4]} 14. Be3 {[%clk 0:02:02.7]} 14... Nd4 {[%clk 0:01:44.2]} 15.
g4 {[%clk 0:01:58.4]} 15... Bg6 {[%clk 0:01:42.4]} 16. Bxd4 {[%clk 0:01:40.2]}
16... exd4 {[%clk 0:01:41.2]} 17. a3 {[%clk 0:01:12.7]} 17... c6 {[%clk
0:01:37.3]} 18. Nd2 {[%clk 0:00:54.2]} 18... Bb6 {[%clk 0:01:33.4]} 19. Be4
{[%clk 0:00:43.7]} 19... Bc7 {[%clk 0:01:23.9]} 20. Qf3 {[%clk 0:00:43.4]} 20...
Qd6 {[%clk 0:01:19.3]} 21. Qg2 {[%clk 0:00:43.7]} 21... Qf4 {[%clk 0:01:15.1]}
22. Nf1 {[%clk 0:00:27.5]} 22... Bxe4 {[%clk 0:01:09.5]} 23. Rxe4 {[%clk
0:00:27.4]} 23... Rxe4 {[%clk 0:01:09.1]} 24. Qxe4 {[%clk 0:00:28.3]} 24... Qd6
{[%clk 0:00:55.9]} 25. Re1 {[%clk 0:00:27]} 25... h6 {[%clk 0:00:53.1]} 26. Qe7
{[%clk 0:00:20.6]} 26... Rd8 {[%clk 0:00:35.2]} 27. Qxd6 {[%clk 0:00:20.7]}
27... Bxd6 {[%clk 0:00:31.2]} 28. Re4 {[%clk 0:00:21.2]} 28... c5 {[%clk
0:00:23.9]} 29. Kg2 {[%clk 0:00:21.8]} 29... g6 {[%clk 0:00:23.3]} 30. Nd2
{[%clk 0:00:20]} 30... Kg7 {[%clk 0:00:22]} 31. Nc4 {[%clk 0:00:19.8]} 31... Kf6
{[%clk 0:00:20.4]} 32. f4 {[%clk 0:00:18]} 32... Bc7 {[%clk 0:00:19.2]} 33. Kf3
{[%clk 0:00:16.7]} 33... b5 {[%clk 0:00:19.3]} 34. Nd2 {[%clk 0:00:14.2]} 34...
Bd6 {[%clk 0:00:18.1]} 35. Re2 {[%clk 0:00:14.3]} 35... Rc8 {[%clk 0:00:18.3]}
36. Ne4+ {[%clk 0:00:14.3]} 36... Ke6 {[%clk 0:00:15.9]} 37. Nxc5+ {[%clk
0:00:13.4]} 37... Kd5 {[%clk 0:00:16.5]} 38. Ne4 {[%clk 0:00:13.6]} 38... Be7
{[%clk 0:00:13.5]} 39. Ng3 {[%clk 0:00:11]} 39... Rc7 {[%clk 0:00:13.4]} 40. Nf1
{[%clk 0:00:10]} 40... b4 {[%clk 0:00:13.5]} 41. axb4 {[%clk 0:00:09.7]} 41...
Bxb4 {[%clk 0:00:14.4]} 42. Ng3 {[%clk 0:00:09.3]} 42... a5 {[%clk 0:00:14.7]}
43. Ne4 {[%clk 0:00:08.8]} 43... Rc6 {[%clk 0:00:15.2]} 44. b3 {[%clk
0:00:08.6]} 44... Ra6 {[%clk 0:00:14]} 45. Nf2 {[%clk 0:00:06.6]} 45... Rc6
{[%clk 0:00:14.2]} 46. Nd1 {[%clk 0:00:06]} 46... Kc5 {[%clk 0:00:09.3]} 47. Nb2
{[%clk 0:00:05.5]} 47... Kd5 {[%clk 0:00:07.6]} 48. Nc4 {[%clk 0:00:04.1]} 48...
Bd6 {[%clk 0:00:08.2]} 49. Re8 {[%clk 0:00:03.2]} 49... Ra6 {[%clk 0:00:07.1]}
50. Rd8 {[%clk 0:00:03.4]} 50... Kc5 {[%clk 0:00:07.5]} 51. Rxd6 {[%clk
0:00:03.7]} 51... Rxd6 {[%clk 0:00:07.2]} 52. Nxd6 {[%clk 0:00:04.6]} 52... Kxd6
{[%clk 0:00:08.1]} 53. Ke4 {[%clk 0:00:05.2]} 53... Kc5 {[%clk 0:00:09]} 54. Ke5
{[%clk 0:00:05.3]} 54... h5 {[%clk 0:00:08.4]} 55. gxh5 {[%clk 0:00:05.1]} 55...
gxh5 {[%clk 0:00:09]} 56. h4 {[%clk 0:00:05.6]} 56... Kb4 {[%clk 0:00:02.2]} 57.
Kxd4 {[%clk 0:00:05.8]} 57... a4 {[%clk 0:00:02.3]} 58. bxa4 {[%clk 0:00:06.4]}
58... Kxa4 {[%clk 0:00:02.8]} 59. Ke5 {[%clk 0:00:06.8]} 59... Kb4 {[%clk
0:00:03.4]} 60. Kf6 {[%clk 0:00:07.6]} 60... Kc3 {[%clk 0:00:04.1]} 61. Kxf7
{[%clk 0:00:08]} 61... Kxc2 {[%clk 0:00:05]} 62. d4 {[%clk 0:00:08.4]} 62... Kd3
{[%clk 0:00:05.9]} 63. d5 {[%clk 0:00:09.1]} 63... Ke4 {[%clk 0:00:06.8]} 64. d6
{[%clk 0:00:10]} 64... Kxf4 {[%clk 0:00:07.7]} 65. d7 {[%clk 0:00:10.9]} 65...
Kg4 {[%clk 0:00:08.6]} 66. d8=Q {[%clk 0:00:11.8]} 66... Kh3 {[%clk 0:00:08.9]}
67. Qg5 {[%clk 0:00:11.9]} 67... Kh2 {[%clk 0:00:09.2]} 68. Qxh5 {[%clk
0:00:12.8]} 68... Kh1 {[%clk 0:00:10]} 69. Qg5 {[%clk 0:00:13.7]} 1-0

[Event "*** Titled Tuesday Blitz"]
[Site "Chess.com"]
[Date "2021.02.09"]
[Round "3"]
[White "Kaliopa"]
[Black "Kurkusha"]
[Result "0-1"]
[WhiteElo "2182"]
[BlackElo "2356"]
[TimeControl "180+1"]
[EndTime "10:30:11 PST"]
[Termination "Kurkusha won by resignation"]

1. e4 {[%clk 0:03:00.9]} 1... e5 {[%clk 0:02:58.7]} 2. Nf3 {[%clk 0:03:00.7]}
2... Nc6 {[%clk 0:02:58.7]} 3. Nc3 {[%clk 0:02:59.8]} 3... Nf6 {[%clk
0:02:58.9]} 4. Bb5 {[%clk 0:03:00.2]} 4... Bd6 {[%clk 0:02:58.2]} 5. a3 {[%clk
0:02:58.3]} 5... a6 {[%clk 0:02:58.3]} 6. Bc4 {[%clk 0:02:57.5]} 6... b5 {[%clk
0:02:58.1]} 7. Bb3 {[%clk 0:02:55]} 7... O-O {[%clk 0:02:58.1]} 8. d3 {[%clk
0:02:54]} 8... Bb7 {[%clk 0:02:57.8]} 9. g4 {[%clk 0:02:53.4]} 9... Nd4 {[%clk
0:02:24.4]} 10. Nxd4 {[%clk 0:02:07.6]} 10... exd4 {[%clk 0:02:25.3]} 11. Ne2
{[%clk 0:02:07.4]} 11... c5 {[%clk 0:02:23.4]} 12. g5 {[%clk 0:02:05]} 12...
Nxe4 {[%clk 0:02:21.5]} 13. dxe4 {[%clk 0:01:49.4]} 13... Bxe4 {[%clk
0:02:22.4]} 14. Rg1 {[%clk 0:01:42.6]} 14... Qe7 {[%clk 0:02:22]} 15. Kf1 {[%clk
0:01:34.6]} 15... Rae8 {[%clk 0:02:07.7]} 16. Ng3 {[%clk 0:01:30.1]} 16... c4
{[%clk 0:01:48.9]} 17. Ba2 {[%clk 0:00:52.1]} 17... Qe5 {[%clk 0:01:03.6]} 18.
Bd2 {[%clk 0:00:26.1]} 18... Bg6 {[%clk 0:00:25]} 19. Kg2 {[%clk 0:00:22.3]}
19... Qd5+ {[%clk 0:00:24]} 20. f3 {[%clk 0:00:21.2]} 20... d3 {[%clk
0:00:22.7]} 21. cxd3 {[%clk 0:00:18.7]} 21... Bxd3 {[%clk 0:00:21.8]} 22. Re1
{[%clk 0:00:17.3]} 22... Bc5 {[%clk 0:00:16.2]} 23. Bc3 {[%clk 0:00:16.7]} 23...
Qxg5 {[%clk 0:00:14.8]} 24. Qd2 {[%clk 0:00:15.5]} 24... Be3 {[%clk 0:00:10.8]}
25. Rxe3 {[%clk 0:00:14.9]} 25... Qxe3 {[%clk 0:00:11.7]} 26. Qxe3 {[%clk
0:00:14.9]} 26... Rxe3 {[%clk 0:00:12.6]} 27. Kf2 {[%clk 0:00:15.6]} 27... Rfe8
{[%clk 0:00:12.7]} 28. Bd4 {[%clk 0:00:15.5]} 28... R3e7 {[%clk 0:00:10.5]} 29.
Rd1 {[%clk 0:00:15.6]} 29... d5 {[%clk 0:00:10]} 30. Rd2 {[%clk 0:00:15.3]}
30... g6 {[%clk 0:00:10.4]} 31. Rd1 {[%clk 0:00:15.5]} 31... Re6 {[%clk
0:00:10.7]} 32. f4 {[%clk 0:00:14.9]} 32... f5 {[%clk 0:00:10.9]} 33. Be5 {[%clk
0:00:14.8]} 33... g5 {[%clk 0:00:10.2]} 34. Bb1 {[%clk 0:00:12.3]} 34... Bxb1
{[%clk 0:00:09.1]} 35. Rxb1 {[%clk 0:00:11.6]} 35... gxf4 {[%clk 0:00:09]} 36.
Bxf4 {[%clk 0:00:12.5]} 36... d4 {[%clk 0:00:09.5]} 37. Rg1 {[%clk 0:00:12.3]}
37... Kf7 {[%clk 0:00:09.2]} 38. Nxf5 {[%clk 0:00:12.1]} 38... Rg8 {[%clk
0:00:08.1]} 39. Nh6+ {[%clk 0:00:10.3]} 39... Rxh6 {[%clk 0:00:07.6]} 40. Rxg8
{[%clk 0:00:10]} 40... Rf6 {[%clk 0:00:05.6]} 41. Rg4 {[%clk 0:00:09.1]} 41...
h5 {[%clk 0:00:05.3]} 42. Rh4 {[%clk 0:00:08.7]} 42... Kg6 {[%clk 0:00:05.9]}
43. Kf3 {[%clk 0:00:08.2]} 43... d3 {[%clk 0:00:06.2]} 44. Ke3 {[%clk
0:00:07.2]} 44... Re6+ {[%clk 0:00:05.8]} 45. Kd2 {[%clk 0:00:07.2]} 45... Re2+
{[%clk 0:00:05.9]} 46. Kc1 {[%clk 0:00:05.8]} 46... Kf5 {[%clk 0:00:06.4]} 47.
Bd2 {[%clk 0:00:04.8]} 47... Kg6 {[%clk 0:00:05.1]} 48. Rh3 {[%clk 0:00:05]}
48... Rf2 {[%clk 0:00:03.2]} 49. Rg3+ {[%clk 0:00:05.3]} 49... Kf5 {[%clk
0:00:03.2]} 50. h4 {[%clk 0:00:05.6]} 50... Rf1+ {[%clk 0:00:03.4]} 51. Be1
{[%clk 0:00:05.5]} 51... Rxe1+ {[%clk 0:00:04.3]} 52. Kd2 {[%clk 0:00:06.3]}
52... Re2+ {[%clk 0:00:04.9]} 53. Kc1 {[%clk 0:00:05.7]} 53... Rc2+ {[%clk
0:00:05.3]} 54. Kb1 {[%clk 0:00:04.8]} 54... Rh2 {[%clk 0:00:05.5]} 55. Rg5+
{[%clk 0:00:04.9]} 55... Kf4 {[%clk 0:00:05.5]} 56. Rxh5 {[%clk 0:00:05.8]}
56... Ke3 {[%clk 0:00:05.9]} 57. Re5+ {[%clk 0:00:05.5]} 57... Kd2 {[%clk
0:00:06.3]} 58. h5 {[%clk 0:00:05.6]} 58... Rh1+ {[%clk 0:00:06.5]} 59. Ka2
{[%clk 0:00:05.3]} 59... Kc2 {[%clk 0:00:07.1]} 60. h6 {[%clk 0:00:05.9]} 60...
d2 {[%clk 0:00:07.5]} 61. h7 {[%clk 0:00:06.3]} 61... Rxh7 {[%clk 0:00:07.7]}
62. Re2 {[%clk 0:00:05.9]} 62... Kc1 {[%clk 0:00:07.5]} 63. a4 {[%clk 0:00:05]}
63... d1=Q {[%clk 0:00:07]} 64. axb5 {[%clk 0:00:05.9]} 64... Qb3+ {[%clk
0:00:07.1]} 0-1

[Event "*** Titled Tuesday Blitz"]
[Site "Chess.com"]
[Date "2021.02.09"]
[Round "3"]
[White "RobertoJBM"]
[Black "Rytenko_V"]
[Result "1-0"]
[WhiteElo "2724"]
[BlackElo "2435"]
[TimeControl "180+1"]
[EndTime "10:30:13 PST"]
[Termination "RobertoJBM won by resignation"]

1. d4 {[%clk 0:03:00.9]} 1... d5 {[%clk 0:02:59.4]} 2. e3 {[%clk 0:03:01.8]}
2... Nf6 {[%clk 0:02:58.3]} 3. Nf3 {[%clk 0:03:02.7]} 3... Bg4 {[%clk
0:02:58.1]} 4. c4 {[%clk 0:03:02.3]} 4... e6 {[%clk 0:02:57.7]} 5. Qb3 {[%clk
0:03:02.2]} 5... b6 {[%clk 0:02:57.3]} 6. Ne5 {[%clk 0:03:01.8]} 6... Bf5 {[%clk
0:02:56.6]} 7. Nc3 {[%clk 0:03:01.3]} 7... c6 {[%clk 0:02:54.9]} 8. Bd2 {[%clk
0:02:58.6]} 8... Bd6 {[%clk 0:02:55]} 9. Rc1 {[%clk 0:02:57.8]} 9... O-O {[%clk
0:02:48.4]} 10. Be2 {[%clk 0:02:47]} 10... Nfd7 {[%clk 0:02:45.8]} 11. Nxd7
{[%clk 0:02:42.2]} 11... Nxd7 {[%clk 0:02:41.4]} 12. O-O {[%clk 0:02:40.6]}
12... Rc8 {[%clk 0:02:35.7]} 13. Rfd1 {[%clk 0:02:34.7]} 13... Qh4 {[%clk
0:02:26.6]} 14. g3 {[%clk 0:02:34.1]} 14... Qf6 {[%clk 0:02:20.4]} 15. cxd5
{[%clk 0:02:27.1]} 15... cxd5 {[%clk 0:02:14.2]} 16. Ba6 {[%clk 0:02:23.4]}
16... Bh3 {[%clk 0:02:07]} 17. Bf1 {[%clk 0:02:12.8]} 17... Bxf1 {[%clk
0:02:05.3]} 18. Rxf1 {[%clk 0:02:13.7]} 18... Qf3 {[%clk 0:01:54.9]} 19. Qd1
{[%clk 0:02:12.9]} 19... Qxd1 {[%clk 0:01:50.4]} 20. Rfxd1 {[%clk 0:02:11.7]}
20... a6 {[%clk 0:01:37]} 21. Kf1 {[%clk 0:02:08.5]} 21... Rfd8 {[%clk
0:01:23.7]} 22. Ke2 {[%clk 0:02:08]} 22... Kf8 {[%clk 0:01:23.8]} 23. f3 {[%clk
0:02:06.2]} 23... Ke7 {[%clk 0:01:23.5]} 24. e4 {[%clk 0:02:03]} 24... dxe4
{[%clk 0:01:17.3]} 25. fxe4 {[%clk 0:02:03.9]} 25... Bb4 {[%clk 0:01:14.2]} 26.
Nd5+ {[%clk 0:01:52.5]} 26... exd5 {[%clk 0:01:13.9]} 27. Bxb4+ {[%clk
0:01:52.9]} 27... Ke6 {[%clk 0:01:13.1]} 28. e5 {[%clk 0:01:44.9]} 28... f6
{[%clk 0:00:54.7]} 29. exf6 {[%clk 0:01:44.5]} 29... Nxf6 {[%clk 0:00:54.6]} 30.
Kd3 {[%clk 0:01:33]} 30... Ne4 {[%clk 0:00:50]} 31. Re1 {[%clk 0:01:31.1]} 31...
a5 {[%clk 0:00:39.6]} 32. Bd2 {[%clk 0:01:30.6]} 32... Rf8 {[%clk 0:00:34.5]}
33. Bf4 {[%clk 0:01:27.9]} 33... g5 {[%clk 0:00:30.2]} 34. Rxc8 {[%clk
0:01:18.7]} 34... Rxc8 {[%clk 0:00:31.1]} 35. Bxg5 {[%clk 0:01:18.6]} 35... Kf5
{[%clk 0:00:24.8]} 36. Be3 {[%clk 0:01:11.6]} 36... h5 {[%clk 0:00:21.6]} 37.
Rf1+ {[%clk 0:01:11.5]} 37... Ke6 {[%clk 0:00:21.6]} 38. Rf4 {[%clk 0:01:06.3]}
38... Rh8 {[%clk 0:00:12.9]} 39. b3 {[%clk 0:01:02.2]} 39... Rh7 {[%clk
0:00:12.2]} 40. Rf8 {[%clk 0:00:59.8]} 40... Rc7 {[%clk 0:00:10.7]} 41. Bd2
{[%clk 0:00:52.1]} 41... Nxd2 {[%clk 0:00:05.6]} 42. Kxd2 {[%clk 0:00:52]} 42...
Rc6 {[%clk 0:00:01.7]} 43. Rh8 {[%clk 0:00:49.2]} 43... Kf5 {[%clk 0:00:01.6]}
44. Rxh5+ {[%clk 0:00:47.4]} 44... Ke4 {[%clk 0:00:02.5]} 45. Rh4+ {[%clk
0:00:47.5]} 45... Kf3 {[%clk 0:00:02.9]} 46. Rf4+ {[%clk 0:00:47]} 46... Kg2
{[%clk 0:00:02.7]} 47. Rh4 {[%clk 0:00:46.4]} 47... Kf3 {[%clk 0:00:02.9]} 48.
Rh5 {[%clk 0:00:35.7]} 48... b5 {[%clk 0:00:01.9]} 49. Rxd5 {[%clk 0:00:33.5]}
49... b4 {[%clk 0:00:01.9]} 50. Rxa5 {[%clk 0:00:31.6]} 50... Ke4 {[%clk
0:00:02.3]} 51. Ra4 {[%clk 0:00:27.3]} 51... Rb6 {[%clk 0:00:02]} 52. h4 {[%clk
0:00:25.4]} 52... Kf3 {[%clk 0:00:02]} 53. Kd3 {[%clk 0:00:23.6]} 53... Kxg3
{[%clk 0:00:02.5]} 54. d5 {[%clk 0:00:23.2]} 54... Kxh4 {[%clk 0:00:02]} 55. Kc4
{[%clk 0:00:23.8]} 55... Kg5 {[%clk 0:00:02.3]} 56. Rxb4 {[%clk 0:00:23.9]}
56... Ra6 {[%clk 0:00:02.9]} 57. a4 {[%clk 0:00:23.7]} 57... Kf5 {[%clk
0:00:03.4]} 58. Kc5 {[%clk 0:00:23.8]} 58... Ke5 {[%clk 0:00:03.5]} 59. Rb5
{[%clk 0:00:21.3]} 59... Ra8 {[%clk 0:00:04.1]} 60. a5 {[%clk 0:00:21.1]} 60...
Rc8+ {[%clk 0:00:04.5]} 61. Kb4 {[%clk 0:00:21]} 61... Kd6 {[%clk 0:00:05.4]}
62. Rb6+ {[%clk 0:00:20.4]} 62... Kxd5 {[%clk 0:00:05.1]} 63. Kb5 {[%clk
0:00:21.3]} 63... Ra8 {[%clk 0:00:04]} 64. b4 {[%clk 0:00:21.5]} 64... Ra7
{[%clk 0:00:03.7]} 65. a6 {[%clk 0:00:21.8]} 65... Ra8 {[%clk 0:00:04.2]} 66.
Rb7 {[%clk 0:00:21.3]} 66... Kd6 {[%clk 0:00:04.3]} 67. Kb6 {[%clk 0:00:21.3]}
67... Re8 {[%clk 0:00:03.6]} 68. a7 {[%clk 0:00:21.1]} 68... Rc8 {[%clk
0:00:03.6]} 69. b5 {[%clk 0:00:20.3]} 69... Rc6+ {[%clk 0:00:04.5]} 70. bxc6
{[%clk 0:00:20.2]} 1-0

[Event "*** Titled Tuesday Blitz"]
[Site "Chess.com"]
[Date "2021.02.09"]
[Round "3"]
[White "Joseacorrea"]
[Black "Taktikmonster"]
[Result "0-1"]
[WhiteElo "1997"]
[BlackElo "2287"]
[TimeControl "180+1"]
[EndTime "10:30:13 PST"]
[Termination "Taktikmonster won by checkmate"]

1. c4 {[%clk 0:03:00.9]} 1... c5 {[%clk 0:02:24.6]} 2. Nc3 {[%clk 0:03:01.3]}
2... g6 {[%clk 0:02:22.5]} 3. Nf3 {[%clk 0:03:01.4]} 3... Bg7 {[%clk 0:02:22.1]}
4. g3 {[%clk 0:03:02.3]} 4... Nc6 {[%clk 0:02:21.3]} 5. Bg2 {[%clk 0:03:02.8]}
5... e5 {[%clk 0:02:21]} 6. O-O {[%clk 0:03:03.1]} 6... d6 {[%clk 0:02:21.5]} 7.
d3 {[%clk 0:03:03.3]} 7... Nge7 {[%clk 0:02:21.2]} 8. Bg5 {[%clk 0:03:02.6]}
8... O-O {[%clk 0:02:18.8]} 9. Qd2 {[%clk 0:03:00.7]} 9... f5 {[%clk 0:02:14.7]}
10. Bh6 {[%clk 0:02:59.1]} 10... f4 {[%clk 0:02:14.9]} 11. Bxg7 {[%clk
0:02:58.8]} 11... Kxg7 {[%clk 0:02:15.8]} 12. h3 {[%clk 0:02:45.8]} 12... h6
{[%clk 0:01:57.4]} 13. e3 {[%clk 0:02:36.6]} 13... Be6 {[%clk 0:01:40.6]} 14. b3
{[%clk 0:02:29.6]} 14... Qd7 {[%clk 0:01:38.6]} 15. Kh2 {[%clk 0:02:28.6]} 15...
Rf7 {[%clk 0:01:31.2]} 16. d4 {[%clk 0:02:28.1]} 16... cxd4 {[%clk 0:00:51]} 17.
exd4 {[%clk 0:02:29]} 17... exd4 {[%clk 0:00:45.5]} 18. Nxd4 {[%clk 0:02:29.9]}
18... Nxd4 {[%clk 0:00:42.1]} 19. Qxd4+ {[%clk 0:02:27.5]} 19... Kh7 {[%clk
0:00:42.5]} 20. Ne4 {[%clk 0:02:16.6]} 20... Raf8 {[%clk 0:00:25.7]} 21. Qxd6
{[%clk 0:02:10.4]} 21... fxg3+ {[%clk 0:00:25.5]} 22. fxg3 {[%clk 0:02:02]}
22... Nf5 {[%clk 0:00:24.1]} 23. Qxd7 {[%clk 0:01:54.6]} 23... Bxd7 {[%clk
0:00:25]} 24. Nc5 {[%clk 0:01:42.3]} 24... Bc6 {[%clk 0:00:22.8]} 25. Bd5 {[%clk
0:01:26.4]} 25... Bxd5 {[%clk 0:00:19.5]} 26. cxd5 {[%clk 0:01:27.3]} 26... Ne3
{[%clk 0:00:18.5]} 27. Rxf7+ {[%clk 0:01:25.5]} 27... Rxf7 {[%clk 0:00:19.4]}
28. d6 {[%clk 0:01:20.9]} 28... b6 {[%clk 0:00:19.6]} 29. d7 {[%clk 0:01:20.1]}
29... Rf2+ {[%clk 0:00:16.7]} 30. Kg1 {[%clk 0:01:17.3]} 30... Rd2 {[%clk
0:00:17.6]} 31. Ne6 {[%clk 0:01:14.3]} 31... Rxd7 {[%clk 0:00:08.9]} 32. Nf8+
{[%clk 0:01:14.1]} 32... Kg7 {[%clk 0:00:09.8]} 33. Nxd7 {[%clk 0:01:14.7]}
33... Kf7 {[%clk 0:00:10.2]} 34. Ne5+ {[%clk 0:01:13.7]} 34... Kf6 {[%clk
0:00:09.9]} 35. Nc4 {[%clk 0:01:13]} 35... Nd5 {[%clk 0:00:08.7]} 36. Rf1+
{[%clk 0:01:10.8]} 36... Ke6 {[%clk 0:00:08.4]} 37. Re1+ {[%clk 0:01:10.6]}
37... Kf6 {[%clk 0:00:07.1]} 38. Kf2 {[%clk 0:01:09]} 38... b5 {[%clk
0:00:06.4]} 39. Ne3 {[%clk 0:01:01.9]} 39... Nb4 {[%clk 0:00:05.8]} 40. a3
{[%clk 0:01:00.8]} 40... Nd3+ {[%clk 0:00:05.6]} 41. Ke2 {[%clk 0:01:00]} 41...
Nxe1 {[%clk 0:00:06.5]} 42. Kxe1 {[%clk 0:01:00.3]} 42... Ke5 {[%clk 0:00:07.4]}
43. Kd2 {[%clk 0:01:00.9]} 43... Ke4 {[%clk 0:00:07.8]} 44. Ke2 {[%clk
0:00:59.3]} 44... a6 {[%clk 0:00:06.7]} 45. Nc2 {[%clk 0:00:51.3]} 45... a5
{[%clk 0:00:05.4]} 46. b4 {[%clk 0:00:36.2]} 46... a4 {[%clk 0:00:04.6]} 47. g4
{[%clk 0:00:35.2]} 47... g5 {[%clk 0:00:04.4]} 48. Ne3 {[%clk 0:00:34.2]} 48...
Kd4 {[%clk 0:00:05.3]} 49. Nf5+ {[%clk 0:00:31.6]} 49... Kc3 {[%clk 0:00:05.7]}
50. Nxh6 {[%clk 0:00:32.2]} 50... Kb3 {[%clk 0:00:06.6]} 51. Nf7 {[%clk
0:00:32.8]} 51... Kxa3 {[%clk 0:00:07.5]} 52. Nxg5 {[%clk 0:00:33.2]} 52... Kb2
{[%clk 0:00:05]} 53. Ne4 {[%clk 0:00:07.8]} 53... a3 {[%clk 0:00:05.9]} 54. g5
{[%clk 0:00:05.6]} 54... a2 {[%clk 0:00:06.3]} 55. g6 {[%clk 0:00:06.5]} 55...
a1=Q {[%clk 0:00:06.7]} 56. g7 {[%clk 0:00:07.4]} 56... Qg1 {[%clk 0:00:04.5]}
57. Nd6 {[%clk 0:00:02.1]} 57... Qxg7 {[%clk 0:00:03.9]} 58. Nxb5 {[%clk
0:00:03]} 58... Qe5+ {[%clk 0:00:04.1]} 59. Kf3 {[%clk 0:00:01.9]} 59... Qxb5
{[%clk 0:00:05]} 60. Kg4 {[%clk 0:00:02.8]} 60... Kb3 {[%clk 0:00:05.4]} 61. h4
{[%clk 0:00:03.7]} 61... Kxb4 {[%clk 0:00:06.3]} 62. h5 {[%clk 0:00:02.5]} 62...
Qe8 {[%clk 0:00:07.2]} 63. Kg5 {[%clk 0:00:01.7]} 63... Qh8 {[%clk 0:00:08.1]}
64. h6 {[%clk 0:00:01.9]} 64... Kc5 {[%clk 0:00:09]} 65. Kg6 {[%clk 0:00:02.4]}
65... Kd6 {[%clk 0:00:09.9]} 66. h7 {[%clk 0:00:02.9]} 66... Ke6 {[%clk
0:00:10.8]} 67. Kh6 {[%clk 0:00:03.4]} 67... Kf5 {[%clk 0:00:10.6]} 68. Kh5
{[%clk 0:00:03]} 68... Qxh7# {[%clk 0:00:11.5]} 0-1

[Event "*** Titled Tuesday Blitz"]
[Site "Chess.com"]
[Date "2021.02.09"]
[Round "3"]
[White "BogdanDeac"]
[Black "BigAl"]
[Result "1-0"]
[WhiteElo "2990"]
[BlackElo "2466"]
[TimeControl "180+1"]
[EndTime "10:30:17 PST"]
[Termination "BogdanDeac won on time"]

1. Nf3 {[%clk 0:03:00.9]} 1... Nf6 {[%clk 0:02:59.5]} 2. c4 {[%clk 0:03:00.4]}
2... g6 {[%clk 0:03:00.1]} 3. Nc3 {[%clk 0:03:00]} 3... Bg7 {[%clk 0:03:00.7]}
4. g3 {[%clk 0:02:57.9]} 4... O-O {[%clk 0:03:01.3]} 5. Bg2 {[%clk 0:02:58]}
5... d6 {[%clk 0:03:01.9]} 6. d4 {[%clk 0:02:57.7]} 6... Nbd7 {[%clk 0:03:01.3]}
7. O-O {[%clk 0:02:57.5]} 7... e5 {[%clk 0:03:01.9]} 8. Qc2 {[%clk 0:02:58.1]}
8... c6 {[%clk 0:02:59.1]} 9. Rd1 {[%clk 0:02:56.3]} 9... Qe7 {[%clk 0:02:58]}
10. e4 {[%clk 0:02:55.6]} 10... exd4 {[%clk 0:02:45.4]} 11. Nxd4 {[%clk
0:02:55.1]} 11... Nc5 {[%clk 0:02:46]} 12. Bf4 {[%clk 0:02:51.7]} 12... Rd8
{[%clk 0:02:32]} 13. h3 {[%clk 0:02:44.8]} 13... Ne6 {[%clk 0:02:26.8]} 14. Be3
{[%clk 0:02:44.3]} 14... Nc5 {[%clk 0:02:19.9]} 15. Re1 {[%clk 0:02:35.5]} 15...
a5 {[%clk 0:02:16.4]} 16. Rad1 {[%clk 0:02:22.9]} 16... h5 {[%clk 0:02:03.8]}
17. Bg5 {[%clk 0:02:14.4]} 17... Ne6 {[%clk 0:01:45.2]} 18. Nxe6 {[%clk
0:02:13.8]} 18... Bxe6 {[%clk 0:01:45.5]} 19. b3 {[%clk 0:02:13.2]} 19... Qc7
{[%clk 0:01:42.7]} 20. Qd2 {[%clk 0:02:08.2]} 20... Rd7 {[%clk 0:01:40]} 21. Ne2
{[%clk 0:01:59.8]} 21... Nh7 {[%clk 0:01:35.2]} 22. Bf4 {[%clk 0:01:58.2]} 22...
Be5 {[%clk 0:01:30.6]} 23. Nd4 {[%clk 0:01:57.8]} 23... Bxf4 {[%clk 0:01:19.6]}
24. Qxf4 {[%clk 0:01:57]} 24... Nf8 {[%clk 0:01:20.2]} 25. Nf3 {[%clk
0:01:46.9]} 25... a4 {[%clk 0:01:13.7]} 26. Ng5 {[%clk 0:01:46.9]} 26... axb3
{[%clk 0:01:13.7]} 27. axb3 {[%clk 0:01:47.8]} 27... Qb6 {[%clk 0:01:10]} 28.
Re3 {[%clk 0:01:46.6]} 28... Ra3 {[%clk 0:01:05.1]} 29. Rdd3 {[%clk 0:01:42.5]}
29... Ra1+ {[%clk 0:01:02]} 30. Kh2 {[%clk 0:01:42.3]} 30... Qc5 {[%clk
0:01:00]} 31. Nf3 {[%clk 0:01:25.5]} 31... Rb1 {[%clk 0:00:48.2]} 32. g4 {[%clk
0:01:14]} 32... hxg4 {[%clk 0:00:47.2]} 33. hxg4 {[%clk 0:01:14.9]} 33... Rb2
{[%clk 0:00:47]} 34. Kg3 {[%clk 0:01:13.7]} 34... Nh7 {[%clk 0:00:38.3]} 35. g5
{[%clk 0:01:13.6]} 35... Qa3 {[%clk 0:00:33]} 36. Nd4 {[%clk 0:00:57.5]} 36...
Nf8 {[%clk 0:00:31.8]} 37. Rf3 {[%clk 0:00:28.8]} 37... Qa1 {[%clk 0:00:28.9]}
38. Qe3 {[%clk 0:00:28.2]} 38... Qg1 {[%clk 0:00:23.5]} 39. Rd2 {[%clk
0:00:20.6]} 39... Rxd2 {[%clk 0:00:20.4]} 40. Qxd2 {[%clk 0:00:20.6]} 40... c5
{[%clk 0:00:19.2]} 41. Nb5 {[%clk 0:00:16.9]} 41... Nh7 {[%clk 0:00:17.5]} 42.
Rd3 {[%clk 0:00:16.8]} 42... Qa1 {[%clk 0:00:15.1]} 43. Nxd6 {[%clk 0:00:15]}
43... Qe5+ {[%clk 0:00:09]} 44. f4 {[%clk 0:00:14.6]} 44... Qa1 {[%clk
0:00:09.2]} 45. e5 {[%clk 0:00:12.6]} 45... Kg7 {[%clk 0:00:05.8]} 46. Qe3
{[%clk 0:00:09.8]} 46... Nf8 {[%clk 0:00:06]} 47. Qxc5 {[%clk 0:00:07.1]} 47...
Rd8 {[%clk 0:00:04.9]} 48. Qe3 {[%clk 0:00:06.6]} 48... Ra8 {[%clk 0:00:04.6]}
49. Bxb7 {[%clk 0:00:05.4]} 49... Ra2 {[%clk 0:00:04.4]} 50. Bg2 {[%clk
0:00:05]} 50... Qb2 {[%clk 0:00:03.9]} 51. Qf3 {[%clk 0:00:03.8]} 51... Qc1
{[%clk 0:00:04]} 52. Ne8+ {[%clk 0:00:03.5]} 52... Kg8 {[%clk 0:00:03.5]} 53.
Qe3 {[%clk 0:00:03.7]} 53... Qa1 {[%clk 0:00:01.8]} 54. Nf6+ {[%clk 0:00:04]}
54... Kg7 {[%clk 0:00:02.7]} 55. Rd2 {[%clk 0:00:04]} 55... Rxd2 {[%clk
0:00:02.2]} 56. Qxd2 {[%clk 0:00:03.9]} 56... Qa3 {[%clk 0:00:02.8]} 57. Qe3
{[%clk 0:00:04.2]} 57... Qb4 {[%clk 0:00:02.1]} 58. Bd5 {[%clk 0:00:04]} 58...
Bf5 {[%clk 0:00:01.9]} 59. Ne8+ {[%clk 0:00:04]} 59... Kg8 {[%clk 0:00:02.3]}
60. Nd6 {[%clk 0:00:04.9]} 60... Bd7 {[%clk 0:00:01.6]} 61. c5 {[%clk
0:00:04.8]} 61... Ne6 {[%clk 0:00:01.8]} 62. c6 {[%clk 0:00:04.7]} 1-0